fUSD/lending_fUSD_20241121
["ID","MTS","AMOUNT","RATE_DAILY","PERIOD"]
[342844032,1732176662649,-438.34939214,0.000438,7]
[342844033,1732176664383,-500.0,0.00042599,18]
[342844034,1732176664393,-125.42636932,0.00042873,18]
[342844035,1732176664405,-449.813326,0.00042873,18]
[342844036,1732176664420,-945.73442389,0.00042873,18]
[342844037,1732176664450,-4550.21588079,0.00042873,18]
[342844038,1732176664460,-204.27,0.00042873,18]
[342844039,1732176664470,-6071.19,0.00043147,18]
[342844040,1732176664480,-6071.19,0.00043421,18]
[342844041,1732176664490,-418.84350321,0.00043695,18]
[342844042,1732176664499,-6071.19,0.00043695,18]
[342844043,1732176664510,-1442.65060786,0.000438,7]
[342844044,1732176664520,-3000.0,0.000438,15]
[342844045,1732176664531,-4031.0,0.00043808,120]
[342844046,1732176664540,-500.0,0.00043821,18]
[342844047,1732176664549,-500.0,0.00043821,18]
[342844048,1732176664559,-929.68,0.00043821,18]
[342844049,1732176664569,-500.0,0.00043821,18]
[342844050,1732176664579,-500.0,0.00043821,18]
[342844051,1732176664589,-500.0,0.00043821,18]
[342844052,1732176664599,-500.0,0.00043821,18]
[342844053,1732176664608,-500.0,0.00043821,18]
[342844054,1732176664618,-500.0,0.00043821,18]
[342844055,1732176664628,-1198.44,0.00043821,18]
[342844056,1732176664638,-500.0,0.00043821,18]
[342844057,1732176664647,-500.0,0.00043821,18]
[342844058,1732176664656,-500.0,0.00043821,18]
[342844059,1732176664666,-500.0,0.00043821,18]
[342844060,1732176664676,-1497.0,0.00043821,18]
[342844061,1732176664686,-146.29936781,0.00043821,18]
[342844062,1732176664799,-81.95215601,0.00043821,18]
[342844063,1732176665824,-642.5,0.00039749,30]
[342844064,1732176665835,-2533.49,0.00042499,18]
[342844065,1732176665844,-500.0,0.00042599,18]
[342844066,1732176665852,-500.0,0.00042599,18]
[342844067,1732176665862,-2533.49,0.00042773,18]
[342844068,1732176665871,-500.0,0.00042873,18]
[342844069,1732176665881,-500.0,0.00042999,18]
[342844070,1732176665891,-2533.49,0.00043047,18]
[342844071,1732176665899,-764.41,0.00043205,30]
[342844072,1732176665909,-500.0,0.00043273,18]
[342844073,1732176665918,-2533.49,0.00043321,18]
[342844074,1732176665927,-2533.49,0.00043595,18]
[342844075,1732176665936,-271.74847618,0.00043821,18]
[342844076,1732176665946,-500.0,0.00043821,18]
[342844077,1732176665959,-500.0,0.00043821,18]
[342844078,1732176665968,-500.0,0.00043821,18]
[342844079,1732176665977,-30.79152382,0.00043821,18]
[342844080,1732176666057,-500.0,0.00042569,18]
[342844081,1732176666809,-770.57,0.00042499,18]
[342844082,1732176666819,-155.41519561,0.00042569,18]
[342844083,1732176666828,-500.0,0.00042599,18]
[342844084,1732176666838,-2305.01,0.00042699,18]
[342844085,1732176666847,-770.57,0.00042773,18]
[342844086,1732176666857,-460.08799241,0.00042873,18]
[342844087,1732176666867,-500.0,0.00042873,18]
[342844088,1732176666876,-500.0,0.00043147,18]
[342844089,1732176666885,-500.0,0.00043147,18]
[342844090,1732176666894,-500.0,0.00043421,18]
[342844091,1732176666903,-500.0,0.00043421,18]
[342844092,1732176666912,-500.0,0.00043547,18]
[342844093,1732176666922,-500.0,0.00043695,18]
[342844094,1732176666931,-500.0,0.00043695,18]
[342844095,1732176666940,-1522.59847618,0.00043821,18]
[342844096,1732176666952,-1417.17,0.00043821,18]
[342844097,1732176666963,-617.79,0.00043821,18]
[342844098,1732176666972,-1548.10974253,0.00043821,18]
[342844099,1732176666987,-858.87025747,0.00043821,18]
[342844100,1732176666998,-621.38,0.00043821,18]
[342844101,1732176667008,-286.23446253,0.00043821,18]
[342844102,1732176667027,-2297.05,0.00042599,18]
[342844103,1732176667042,-0.3,0.00042599,18]
[342844104,1732176667052,-213.76553747,0.00043821,18]
[342844105,1732176667062,-500.0,0.00043821,18]
[342844106,1732176667071,-589.16958024,0.00043821,18]
[342844107,1732176667081,-500.0,0.00043821,18]
[342844108,1732176667090,-616.87836506,0.00043821,18]
[342844109,1732176667109,-770.57,0.00043047,18]
[342844110,1732176667119,-1003.63163494,0.00043821,18]
[342844111,1732176667128,-5098.83,0.00043821,18]
[342844112,1732176667137,-345.58,0.00043821,18]
[342844113,1732176667148,-865.65,0.00043833,18]
[342844114,1732176667158,-865.65,0.00043833,18]
[342844115,1732176667167,-865.65,0.00043833,18]
[342844116,1732176667176,-643.49088285,0.00043833,18]
[342844117,1732176667266,-1577.45916343,0.00042999,18]
[342844118,1732176667278,-727.55083657,0.00042999,18]
[342844119,1732176667292,-222.15911715,0.00043833,18]
[342844120,1732176667301,-419.42945078,0.00043833,18]
[342844121,1732176667317,-446.22054922,0.00043833,18]
[342844122,1732176667327,-865.65,0.00043833,18]
[342844123,1732176667337,-1563.44,0.00043833,18]
[342844124,1732176667346,-701.67363875,0.00043834,2]
[342844126,1732177389583,-156.95,0.00015342,2]
[342844128,1732177541122,-2833.08232154,0.00024731,2]
[342844129,1732177541145,-2833.08232154,0.00024732,2]
[342844130,1732177541167,-1822.07770754,0.00024732,2]
[342844131,1732177629152,-150.0,0.00018531,2]
[342844132,1732177629174,-337.001538,0.00024532,2]
[342844133,1732177629195,-337.001538,0.00024632,2]
[342844134,1732177629216,-43.73777724,0.00024632,4]
[342844135,1732177630099,-759.29415306,0.00024632,4]
[342844136,1732177630122,-337.001538,0.00024731,2]
[342844137,1732177630144,-200.0,0.00024831,10]
[342844138,1732177630165,-1531.9731012,0.00024831,2]
[342844139,1732177631793,150.0,9.6e-05,2]
[342844140,1732177631817,150.0,9.6e-05,2]
[342844141,1732177631840,50.0,9.6e-05,2]
[342844142,1732177640106,-253.31950391,0.00024831,2]
[342844146,1732177747196,-16182.10969515,0.0002,2]
[342844147,1732177747218,-122.58738485,0.00024732,2]
[342844148,1732177752131,-1600.31762809,0.00024732,2]
[342844149,1732177752151,-1748.60258681,0.00024832,2]
[342844150,1732177752172,-500.0,0.00024932,2]
[342844151,1732177752192,-500.0,0.00024932,2]
[342844152,1732177752213,-500.0,0.00024932,2]
[342844153,1732177752234,-500.0,0.00024932,2]
[342844154,1732177752256,-3532.55171913,0.00025,7]
[342844155,1732177752276,-410.78075325,0.00027,2]
[342844156,1732177752297,-150.0,0.000273,2]
[342844157,1732177762235,155.73,0.00015342,2]
[342844158,1732177762385,155.73,0.00026401,2]
[342844159,1732177773098,-156.95,0.00028858,2]
[342844160,1732177773119,-655.54725,0.00028945,2]
[342844161,1732177773141,-167.44,0.00029601,2]
[342844162,1732177773163,-500.0,0.0003,30]
[342844163,1732177773187,-500.0,0.0003,30]
[342844164,1732177773208,-644.88390652,0.0003,30]
[342844165,1732177773230,-150.99,0.0003,2]
[342844166,1732177773254,-500.0,0.000305,30]
[342844167,1732177773278,-393.74549899,0.000305,30]
[342844172,1732177782094,150.0,0.00027205,2]
[342844193,1732177831363,-257.63188628,0.00030499,2]
[342844195,1732177831375,-142.36811372,0.00030499,2]
[342844197,1732177831384,-106.25450101,0.000305,30]
[342844199,1732177831395,-500.0,0.000305,30]
[342844201,1732177831404,-738.2,0.000305,2]
[342844203,1732177831413,-633.38,0.000305,2]
[342844205,1732177831423,-5617.49,0.000305,2]
[342844208,1732177831432,-250.0,0.00031,2]
[342844210,1732177831442,-692.0,0.00031999,2]
[342844212,1732177831451,-10671.76324395,0.00032,90]
[342844215,1732177831475,-6546.6381055,0.00032,90]
[342844217,1732177831488,-6348.99344385,0.00032,90]
[342844219,1732177831497,-16943.03389263,0.00032,90]
[342844221,1732177831508,-11980.49266352,0.00032,90]
[342844224,1732177831527,-295.15828917,0.00032,90]
[342844227,1732177831543,-10162.47562507,0.00032,90]
[342844229,1732177831553,-250.0,0.00032394,2]
[342844231,1732177831563,-560.0,0.00032854,2]
[342844233,1732177831572,-23900.0,0.00032969,2]
[342844235,1732177831582,-300.0,0.00033,2]
[342844236,1732177831591,-9794.44471475,0.00033,2]
[342844237,1732177831600,-24827.49702247,0.00033,2]
[342844238,1732177831610,-1154.78207732,0.000335,2]
[342844239,1732177831619,-57014.33670347,0.00034,120]
[342844240,1732177831629,-168.11,0.00034244,120]
[342844241,1732177831638,-1195.84,0.00034271,2]
[342844242,1732177831647,-179.34609502,0.00034739,2]
[342844243,1732177831657,-3150.57939709,0.00034739,15]
[342844244,1732177831666,-300.61025974,0.00034739,2]
[342844245,1732177831676,-655.41519561,0.00034739,8]
[342844246,1732177831685,-808.67615654,0.00034739,7]
[342844247,1732177831694,-569.65537035,0.00034839,120]
[342844248,1732177831704,-560.07741766,0.00034839,2]
[342844249,1732177831716,-147016.96576593,0.00034839,4]
[342844250,1732177831787,-974.03849874,0.00034839,4]
[342844254,1732177831908,-30393.46215958,0.00034839,4]
[342844922,1732177838557,-96.41564946,0.00034839,4]
[342845088,1732177840569,-900.0,0.00034839,4]
[342845089,1732177840580,-5000.0,0.00034839,4]
[342845090,1732177840598,-28879.07134764,0.00034839,4]
[342845091,1732177840620,-64665.89958381,0.00034839,4]
[342845092,1732177840650,-322171.97397836,0.00034839,4]
[342845093,1732177840660,-161931.97460849,0.00034839,2]
[342845094,1732177840670,-30056.49876179,0.00034839,120]
[342845095,1732177840679,-328732.40506612,0.00034839,2]
[342845096,1732177840689,-3004.32997728,0.00034839,2]
[342845097,1732177840699,-31843.25707307,0.00034839,2]
[342845098,1732177840708,-1686.79744311,0.00034839,30]
[342845099,1732177840718,-242.23169125,0.00034839,30]
[342845100,1732177840729,-226.07680828,0.00034839,120]
[342845101,1732177840738,-600.52984516,0.00034839,2]
[342845102,1732177840748,-500.0,0.00034873,2]
[342845103,1732177840757,-351.10549094,0.00034873,5]
[342845104,1732177840768,-500.0,0.00034873,5]
[342845105,1732177840778,-350.0,0.00035,2]
[342845106,1732177840787,-29859.96576316,0.00035,30]
[342845107,1732177840796,-200.0,0.00035212,2]
[342845108,1732177840806,-783.0,0.00035391,2]
[342845109,1732177840815,-1000.0,0.00035419,2]
[342845110,1732177840824,-200.0,0.00035459,2]
[342845111,1732177840834,-500.0,0.00035597,2]
[342845112,1732177840843,-3150.57939705,0.00035723,15]
[342845113,1732177840853,-162.29,0.00035774,2]
[342845114,1732177840863,-1702.81,0.00035845,2]
[342845115,1732177840872,-280.98,0.0003598,2]
[342845116,1732177840882,-300.61025968,0.00036005,2]
[342845117,1732177840891,-1926.52,0.00036106,120]
[342845118,1732177840901,-496.37,0.0003641,2]
[342845119,1732177840911,-507.86,0.00036493,2]
[342845120,1732177840920,-6232.76,0.00036515,2]
[342845121,1732177840930,-1195.84,0.00036535,2]
[342845122,1732177840939,-162.33,0.00036567,2]
[342845123,1732177840949,-1282.88,0.00036586,2]
[342845124,1732177840958,-3150.57939705,0.00036707,15]
[342845125,1732177840968,-922.37,0.00036737,2]
[342845126,1732177840981,-2028.08,0.00036777,2]
[342845127,1732177840991,-153.26,0.00036829,120]
[342845128,1732177841000,-158.55,0.0003686,120]
[342845129,1732177841010,-150.25,0.00036898,2]
[342845130,1732177841019,-400.0,0.00037,2]
[342845132,1732177841028,-285.11,0.00037015,120]
[342845134,1732177841038,-500.0,0.00037157,2]
[342845136,1732177841048,-250.0,0.00037196,2]
[342845138,1732177841058,-300.61025968,0.0003727,2]
[342845140,1732177841068,-250.0,0.0003729,120]
[342845142,1732177841078,-250.0,0.00037291,2]
[342845144,1732177841087,-655.54725,0.00037299,2]
[342845146,1732177841097,-155.73,0.0003746,2]
[342845148,1732177841106,-3150.57939705,0.00037691,15]
[342845150,1732177841115,-569.65537035,0.00038,120]
[342845152,1732177841125,-1097.0,0.00038124,2]
[342845154,1732177841135,-351.33,0.0003826,2]
[342845156,1732177841145,-166.69,0.00038325,2]
[342845158,1732177841154,-3264.59,0.00038388,2]
[342845160,1732177841163,-171.84687509,0.000385,51]
[342845162,1732177841173,-2208.687,0.000385,51]
[342845164,1732177841182,-300.61025968,0.00038536,2]
[342845166,1732177841192,-1659.74302562,0.0003867,15]
[342845168,1732177841202,-3150.57939705,0.00038675,15]
[342845170,1732177841211,-1195.84,0.00038799,2]
[342845172,1732177841221,-500.0,0.00038867,5]
[342845174,1732177841233,-450.0,0.00039,2]
[342845176,1732177841243,-430.4552,0.00039041,10]
[342845178,1732177841254,-1659.74302556,0.00039294,15]
[342845180,1732177841264,-168.9,0.00039321,63]
[342845182,1732177841274,-500.0,0.00039415,5]
[342845184,1732177841285,-3150.57939705,0.00039659,15]
[342845186,1732177841295,-3269.16077326,0.00039701,2]
[342845188,1732177841306,-215.0182091,0.00039746,8]
[342845190,1732177841318,-200.74289976,0.00039746,2]
[342845193,1732177841332,-394826.37968407,0.000398,2]
[342845198,1732177841374,-1421.43851598,0.000398,2]
[342845201,1732177841400,-17012.75506407,0.000398,2]
[342845240,1732177842110,-1728.62026008,0.000398,2]
[342845241,1732177842127,-1400.23718317,0.000398,2]
[342845244,1732177842604,-410.4575,0.000398,2]
[342845245,1732177842624,-495.15265767,0.000398,2]
[342845246,1732177842684,-1369.0,0.000398,2]
[342845247,1732177842700,-1009.71667059,0.000398,2]
[342845254,1732177843239,-3151.53788602,0.000398,2]
[342845255,1732177843252,-320.59694012,0.000398,2]
[342845256,1732177843300,-489.18296135,0.000398,2]
[342845257,1732177843311,-362.76485203,0.000398,2]
[342845258,1732177843378,-1067.6047624,0.000398,2]
[342845259,1732177843392,-991.31969553,0.000398,2]
[342845260,1732177843409,-4546.25,0.000398,2]
[342845261,1732177843420,-3437.65884619,0.000398,2]
[342845262,1732177843443,-4002.3379599,0.000398,2]
[342845263,1732177843462,-2987.55050051,0.000398,2]
[342845264,1732177843473,-5979.71184117,0.000398,2]
[342845265,1732177843546,-5399.86046849,0.000398,2]
[342845266,1732177843557,-13552.88103241,0.000398,2]
[342845269,1732177845440,-359.00939672,0.00034829,10]
[342845270,1732177845451,-216.70060328,0.00034829,10]
[342845271,1732177845461,-1285.96295781,0.000398,2]
[342845272,1732177845472,-2037.91664276,0.000398,2]
[342845273,1732177845485,-1643.50157031,0.000398,2]
[342845274,1732177845514,-14272.25857948,0.000398,2]
[342845275,1732177845525,-321.48339797,0.000398,2]
[342845276,1732177845545,-271.4711,0.000398,2]
[342845277,1732177845556,-959.66047797,0.000398,2]
[342845278,1732177845594,-385.51876257,0.000398,2]
[342845279,1732177845606,-348.547565,0.000398,2]
[342845280,1732177845617,-14258.89913316,0.000398,2]
[342845281,1732177845639,-15609.038983,0.000398,2]
[342845282,1732177845650,-2699.80418807,0.000398,2]
[342845283,1732177845661,-3118.69337497,0.000398,2]
[342845284,1732177845708,-572.85,0.000398,2]
[342845285,1732177845720,-968.35,0.000398,2]
[342845287,1732178758122,-154.66,0.00015342,2]
[342845288,1732178758146,-500.0,0.00024932,2]
[342845289,1732178758167,-500.0,0.00024932,2]
[342845290,1732178758190,-154.66,0.00025479,2]
[342845291,1732178758213,-250.0,0.00031,2]
[342845292,1732178758234,-461.71558762,0.000329,2]
[342845293,1732178758256,-150.0,0.00032986,2]
[342845294,1732178758277,-64.10519344,0.00033,2]
[342845295,1732178829722,-150.0,0.00016862,2]
[342845296,1732178829743,-164.45,0.00030424,2]
[342845297,1732178829764,-235.89480656,0.00033,2]
[342845298,1732178829785,-150.0,0.00034548,10]
[342845299,1732178829806,-1508.14955984,0.00034728,2]
[342845300,1732178829828,-1148.8527,0.00034739,2]
[342845301,1732178829848,-386.0,0.00034838,3]
[342845302,1732178829869,-400.0,0.00034838,2]
[342845303,1732178829889,-3000.0,0.00034839,120]
[342845304,1732178829910,-1033.50761596,0.00034839,120]
[342845305,1732178832086,-1135.99649513,0.00034839,120]
[342845306,1732178832106,-350.0,0.00035,2]
[342845307,1732178832127,-154.66,0.00035616,2]
[342845308,1732178832246,-461.71558761,0.0003625,2]
[342845309,1732178832320,-1161.85,0.00036424,2]
[342845310,1732178832341,-400.0,0.00037,2]
[342845311,1732178832362,-560.0,0.0003736,2]
[342845312,1732178832382,-250.0,0.00037951,2]
[342845313,1732178832402,-907.45058081,0.00038,120]
[342845314,1732178832422,-224.46334062,0.00038,120]
[342845315,1732178832443,-250.0,0.0003803,2]
[342845316,1732178832463,-293.62,0.0003803,120]
[342845317,1732178832483,-200.0,0.00038561,2]
[342845318,1732178832503,-2939.38118344,0.0003857,2]
[342845319,1732178853095,-3194.2881593,0.0003857,2]
[342845331,1732179031624,-776.58033881,0.00034828,120]
[342845332,1732179031636,-130.870242,0.00034828,120]
[342845333,1732179031647,-224.46334062,0.00034828,120]
[342845334,1732179031656,-115.26321342,0.0003847,2]
[342845335,1732179031672,-34.97678658,0.0003847,2]
[342845336,1732179031682,-153.90519587,0.00038528,2]
[342845337,1732179031691,-657.58801755,0.0003857,2]
[342845338,1732179031703,-350.2299999,0.0003857,2]
[342845339,1732179031730,-9392.69226993,0.0003857,2]
[342845340,1732179031759,-1117.7,0.0003857,2]
[342845341,1732179031771,-730.26123797,0.0003857,2]
[342845342,1732179031801,-5517.85913191,0.0003857,2]
[342845343,1732179031811,-770.13,0.00038588,2]
[342845344,1732179031821,-630.52,0.00038628,120]
[342845345,1732179031830,-200.0,0.00038635,2]
[342845346,1732179031840,-1161.85,0.00038688,2]
[342845347,1732179031849,-320.05,0.00038692,2]
[342845348,1732179031858,-159.37,0.00038707,120]
[342845349,1732179031868,-165.13,0.00038729,2]
[342845350,1732179031877,-1000.0,0.0003884,2]
[342845351,1732179031886,-61.01241646,0.00038849,120]
[342845352,1732179034127,-803.89758354,0.00038849,120]
[342845354,1732179034137,-250.0,0.00038993,120]
[342845357,1732179034147,-450.0,0.00039,2]
[342845359,1732179034158,-280.6,0.00039,120]
[342845361,1732179034168,-1417.0,0.00039008,2]
[342845363,1732179034178,-153.90519587,0.00039064,2]
[342845365,1732179034187,-600.0,0.000396,14]
[342845366,1732179034197,-153.90519587,0.000396,2]
[342845367,1732179034211,-167.26,0.00039626,2]
[342845368,1732179034222,-18161.26111111,0.00039699,2]
[342845370,1732179038027,-2003.71600293,0.00039699,2]
[342845372,1732179038185,-12016.13820177,0.00039699,2]
[342845373,1732179038220,-1781.55444,0.00039699,2]
[342845374,1732179038236,-2659.86624223,0.00039699,2]
[342845375,1732179038276,-2976.70383693,0.00039699,2]
[342845376,1732179038288,-487.58923985,0.00039699,2]
[342845377,1732179038300,-200.19462518,0.00039699,2]
[342845378,1732179038310,-1248.8665,0.000397,2]
[342845379,1732179038319,-668.4291,0.000397,2]
[342845380,1732179038329,-2164.8791,0.000397,2]
[342845381,1732179038338,-2500.0,0.000397,2]
[342845382,1732179038348,-508.3190042,0.000397,2]
[342845383,1732179038357,-7592.4059,0.000397,2]
[342845384,1732179038367,-1621.23015824,0.000397,15]
[342845385,1732179038376,-11506.64804494,0.000397,15]
[342845386,1732179038386,-1300.0,0.000397,14]
[342845387,1732179038396,-177.89574245,0.000397,2]
[342845388,1732179038406,-300.61025968,0.000397,2]
[342845389,1732179038415,-166.98675492,0.000397,13]
[342845390,1732179038426,-754.76441278,0.000397,12]
[342845391,1732179038435,-257.5,0.00039718,30]
[342845392,1732179038444,-501.00833409,0.00039773,5]
[342845393,1732179038455,-500.0,0.00039773,5]
[342845394,1732179038466,-500.0,0.00039773,5]
[342845395,1732179038475,-500.0,0.00039773,2]
[342845396,1732179038485,-500.0,0.00039773,5]
[342845397,1732179038494,-500.0,0.00039773,5]
[342845398,1732179038503,-500.17200689,0.00039773,5]
[342845399,1732179038512,-160.5863986,0.00039773,5]
[342845400,1732179038522,-1840.31,0.00039773,55]
[342845401,1732179038531,-9272.25681254,0.0003979,2]
[342845402,1732179038540,-154.5,0.00039799,2]
[342845403,1732179038550,-298.32636125,0.00039799,2]
[342845404,1732179038559,-1000.0,0.00039799,2]
[342845405,1732179038569,-1360.27664179,0.00039799,14]
[342845406,1732179038579,-196.15786088,0.00039799,20]
[342845407,1732179038588,-51247.92950983,0.00039799,2]
[342845409,1732179039615,-637.07124318,0.000397,2]
[342845410,1732179039729,-2354.84092465,0.000397,2]
[342845411,1732179039747,-1285.05571944,0.000397,2]
[342845412,1732179039757,-1174.31456164,0.000397,2]
[342845413,1732179039780,-385.900198,0.000397,2]
[342845414,1732179039792,-2189.69258679,0.000397,2]
[342845415,1732179039803,-10069.71987046,0.000397,2]
[342845705,1732179042561,-4856.8466413,0.000397,2]
[342845708,1732179042573,-4616.80177371,0.000397,2]
[342845720,1732179042674,-1145.11578986,0.000397,2]
[342845722,1732179042686,-2095.35429097,0.000397,2]
[342845724,1732179042695,-878.97782539,0.00039789,3]
[342845726,1732179042707,-489.89217461,0.00039789,3]
[342845729,1732179042719,-435.92372281,0.00039799,2]
[342845731,1732179042730,-632.52348141,0.00039799,2]
[342845733,1732179042744,-8502.91711964,0.00039799,2]
[342845740,1732179042803,-296.18044634,0.00039799,2]
[342845743,1732179042815,-28401.18571997,0.00039799,2]
[342845745,1732179042824,-210.0,0.000398,2]
[342845747,1732179042834,-19267.01128809,0.000398,2]
[342845749,1732179042845,-2526.94424042,0.000398,2]
[342845751,1732179042856,-756.23077793,0.000398,2]
[342846019,1732179045503,-2297.50306394,0.00034728,2]
[342846025,1732179045562,-547.84176427,0.00034728,2]
[342846027,1732179045574,-315.3606619,0.00034728,2]
[342846029,1732179045583,-150.0,0.00039773,5]
[342846031,1732179045592,-287.3273381,0.000398,2]
[342846034,1732179045603,-1972.83,0.000398,2]
[342846036,1732179045615,-253.52,0.000398,2]
[342846039,1732179045638,-373.49586585,0.000398,2]
[342846042,1732179045649,-3208.73574643,0.000398,2]
[342846044,1732179045661,-1171.666256,0.000398,2]
[342846047,1732179045685,-856.2321508,0.000398,2]
[342846049,1732179045697,-620.1702649,0.000398,2]
[342846064,1732179045826,-103.03562641,0.000398,2]
[342846085,1732179046013,-1954.09107894,0.000398,2]
[342846088,1732179046032,-1445.87941935,0.000398,2]
[342846092,1732179046057,-568.81473048,0.000398,2]
[342846099,1732179046119,-755.87827446,0.000398,2]
[342847368,1732179063495,250.78446201,0.000235,90]
[342847369,1732179066570,1654.74125,0.00026815,2]
[342847371,1732179132829,605.08,0.00026986,120]
[342847372,1732179136942,151.0,0.0003,120]
[342847373,1732179252148,150.0,9.6e-05,2]
[342847374,1732179252173,50.0,9.6e-05,2]
[342847387,1732179611791,150.0,9.6e-05,2]
[342847388,1732179611813,50.0,9.6e-05,2]
[342847390,1732179903755,150.0,9.982e-05,2]
[342847391,1732179903777,118.57324363,9.982e-05,2]
[342847392,1732179957111,-160.92,0.00015342,2]
[342847393,1732179957133,-211.23724123,0.00024931,2]
[342847394,1732179958109,-88.76275877,0.00024931,2]
[342847395,1732179958132,-500.0,0.00024932,2]
[342847396,1732179958153,-500.0,0.00024932,2]
[342847397,1732179958174,-500.0,0.00024932,2]
[342847398,1732179958195,-500.0,0.00024932,2]
[342847399,1732179958216,-2149.0,0.00024932,2]
[342847400,1732179958237,-364.361,0.00025,2]
[342847401,1732179958258,-218.5155,0.00026815,2]
[342847402,1732179958279,-403.0,0.0002701,2]
[342847403,1732179958300,-160.92,0.00028858,2]
[342847404,1732179958320,-218.516,0.00028945,2]
[342847405,1732179958342,-151.0,0.0003,120]
[342847406,1732179958362,-187.24,0.0003,2]
[342847407,1732179958382,-170.89,0.00030172,2]
[342847408,1732179958403,-751.77592837,0.00030383,2]
[342847409,1732180018713,-150.0,0.000345,120]
[342847410,1732180026127,-150.0,0.00016862,2]
[342847411,1732180026149,-167.13,0.00029081,2]
[342847412,1732180026171,-1340.50993863,0.00030383,2]
[342847413,1732180026192,-7469.6923395,0.000306,2]
[342847414,1732180035349,-1337.01688658,0.000306,2]
[342847415,1732180051110,-782.18301635,0.000308,2]
[342847416,1732180051435,-782.18301634,0.000309,2]
[342847417,1732180051464,-250.0,0.00031,2]
[342847418,1732180051485,-1719.14865437,0.000314,3]
[342847420,1732180148088,-8048.0,0.000301,2]
[342847421,1732180148113,-11558.0,0.000311,3]
[342847422,1732180148135,-1550.17,0.00032833,2]
[342847423,1732180148158,-487.83,0.0003299,2]
[342847424,1732180148181,-300.0,0.00033,2]
[342847425,1732180148203,-1472.248,0.000331,34]
[342847426,1732180148225,-404.7,0.0003329,2]
[342847427,1732180148246,-150.0,0.00033423,2]
[342847428,1732180148269,-170.89,0.00033944,2]
[342847429,1732180148289,-4044.56,0.000345,63]
[342847430,1732180148312,-239.99,0.0003499,2]
[342847431,1732180148333,-350.0,0.00035,2]
[342847432,1732180148354,-250.0,0.00035085,120]
[342847433,1732180148378,-1550.17,0.00035097,2]
[342847434,1732180148403,-250.0,0.00035169,2]
[342847435,1732180148424,-913.83,0.00035507,2]
[342847436,1732180148444,-1654.74125,0.00035621,2]
[342847437,1732180148466,-218.5155,0.00035621,2]
[342847438,1732180148486,-3987.76,0.0003579,2]
[342847439,1732180148507,-228.53,0.00035845,2]
[342847440,1732180148527,-600.0,0.00035958,2]
[342847441,1732180148549,-2422.03,0.00035959,2]
[342847442,1732180148570,-2422.03,0.00035969,2]
[342847443,1732180148592,-2422.03,0.00035978,2]
[342847444,1732180148615,-2422.03,0.00035988,2]
[342847445,1732180148637,-2295.27215581,0.00035997,2]
[342847453,1732180171107,-165.14305454,0.00031,2]
[342847454,1732180171131,-11558.0,0.000321,5]
[342847455,1732180171156,-150.0,0.0003311,2]
[342847456,1732180172671,170.89,0.00028649,2]
[342847465,1732180211222,2316.0,0.00033,5]
[342847466,1732180214780,163.887,0.00026409,2]
[342847468,1732180231886,-173.92856017,0.0003575,2]
[342847469,1732180231896,-3204.04,0.00035792,2]
[342847470,1732180231908,-170.89,0.00035812,2]
[342847471,1732180231919,-173.92856016,0.00035838,2]
[342847472,1732180231939,-250.0,0.0003585,2]
[342847473,1732180231952,-150.0,0.00035892,2]
[342847474,1732180231964,-173.92856016,0.00035925,2]
[342847475,1732180231975,-126.75784419,0.00035997,2]
[342847476,1732180231989,-2422.03,0.00036006,2]
[342847477,1732180232001,-2422.03,0.00036016,2]